bitfinex/quotes_BTCUSD_20240820
["timestamp","ask_amount","ask_price","bid_price","bid_amount"]
[1724162430717,4e-05,60984.0,60983.0,1.1297966]
[1724162430718,0.00104,60984.0,60983.0,1.1297966]
[1724162431148,4e-05,60984.0,60983.0,1.1277966]
[1724162431569,0.00104,60984.0,60983.0,1.1287966]
[1724162431806,4e-05,60984.0,60983.0,0.3944606]
[1724162432205,0.00104,60984.0,60983.0,0.6568286]
[1724162432414,0.009784,60984.0,60983.0,0.0009086]
[1724162432825,0.010784,60984.0,60983.0,0.0019086]
[1724162433032,0.009784,60984.0,60983.0,0.0019086]
[1724162433241,0.17278698,60984.0,60983.0,0.0009086]
[1724162433460,0.68863098,60984.0,60983.0,0.0009086]
[1724162433681,0.95399398,60984.0,60983.0,0.0009086]
[1724162433901,1.03979398,60984.0,60983.0,0.0009086]
[1724162434123,1.03679398,60984.0,60983.0,0.0009086]
[1724162434381,1.29915698,60984.0,60983.0,0.0009086]
[1724162434584,1.69131869,60984.0,60983.0,0.0009086]
[1724162434803,1.66672667,60984.0,60983.0,0.0009086]
[1724162435030,1.75728235,60984.0,60983.0,0.0009086]
[1724162435275,1.30715698,60984.0,60983.0,0.0009086]
[1724162435743,1.31115698,60984.0,60983.0,0.0009086]
[1724162435993,0.002,60980.0,60966.0,0.0009086]
[1724162436224,1.3053375,60984.0,60957.0,0.009075]
[1724162436225,1.002162,60958.0,60957.0,0.009075]
[1724162436430,1.27636498,60958.0,60957.0,0.009075]
[1724162436642,1.47657951,60958.0,60957.0,0.009075]
[1724162436895,1.53829922,60958.0,60957.0,0.009075]
[1724162437103,1.95699922,60958.0,60957.0,0.009075]
[1724162437311,1.97999922,60958.0,60957.0,0.009075]
[1724162437533,1.97599922,60958.0,60957.0,0.009075]
[1724162437742,1.55729922,60958.0,60957.0,0.009075]
[1724162437953,1.34386366,60958.0,60957.0,0.009075]
[1724162438162,1.29482422,60958.0,60957.0,0.009075]
[1724162438790,1.13488998,60958.0,60957.0,0.009075]
[1724162439237,1.14888998,60958.0,60957.0,0.009075]
[1724162439702,0.26150298,60958.0,60957.0,0.009075]
[1724162439918,0.014,60958.0,60957.0,0.009075]
[1724162440123,0.028,60958.0,60957.0,0.009075]
[1724162440337,0.042,60958.0,60957.0,0.140315]
[1724162440797,0.212028,60963.0,60957.0,0.140315]
[1724162441002,0.014,60958.0,60957.0,0.009075]
[1724162441613,0.131237,60959.0,60957.0,0.009075]
[1724162442090,0.56471498,60958.0,60957.0,0.009075]
[1724162442328,1.22116498,60958.0,60957.0,0.009075]
[1724162442796,1.23516498,60958.0,60957.0,0.009075]
[1724162443031,1.22116498,60958.0,60957.0,0.009075]
[1724162443275,0.58771498,60958.0,60957.0,0.009075]
[1724162443521,0.31823998,60958.0,60957.0,0.009075]
[1724162443759,0.008,60959.0,60957.0,0.140313]
[1724162443970,0.01,60958.0,60957.0,0.009075]
[1724162444888,0.017,60958.0,60957.0,0.009075]
[1724162445108,0.0399032,60958.0,60957.0,0.009075]
[1724162445354,0.017,60958.0,60957.0,0.009075]
[1724162445812,0.007,60958.0,60957.0,0.009075]
[1724162446056,0.138237,60958.0,60957.0,0.009075]
[1724162446289,0.95038998,60958.0,60957.0,0.009075]
[1724162446763,1.30606498,60958.0,60957.0,0.009075]
[1724162446993,1.18477148,60958.0,60957.0,0.009075]
[1724162447482,1.16777148,60958.0,60957.0,0.009075]
[1724162447950,1.17677148,60958.0,60957.0,0.009075]
[1724162448908,1.19077148,60958.0,60957.0,0.009075]
[1724162449145,1.19277148,60958.0,60957.0,0.009075]
[1724162449382,1.45524648,60958.0,60957.0,0.009075]
[1724162450312,1.53424648,60958.0,60957.0,0.009075]
[1724162450571,1.81072148,60958.0,60957.0,0.009075]
[1724162450778,1.82472148,60958.0,60957.0,0.009075]
[1724162451269,1.81072148,60958.0,60955.0,0.0009075]
[1724162451492,1.27359698,60956.0,60955.0,0.0009075]
[1724162451719,1.69229698,60956.0,60955.0,0.0009075]
[1724162451947,1.97778098,60956.0,60955.0,0.0009075]
[1724162452251,2.07778098,60956.0,60955.0,0.0009075]
[1724162452514,1.82305976,60956.0,60955.0,0.0009075]
[1724162452686,1.82305976,60956.0,60947.0,0.009075]
[1724162452687,1.114513,60948.0,60947.0,0.009075]
[1724162452884,1.40151598,60948.0,60947.0,0.009075]
[1724162453288,1.66403398,60948.0,60947.0,0.009075]
[1724162453492,1.40151598,60948.0,60947.0,0.009075]
[1724162453754,0.004,60939.0,60931.0,0.0002]
[1724162453919,0.004,60939.0,60929.0,0.0009075]
[1724162453920,0.135298,60930.0,60929.0,0.0009075]
[1724162454090,0.135298,60930.0,60924.0,0.009086]
[1724162454091,0.135304,60927.0,60924.0,0.009086]
[1724162454302,1.37833398,60927.0,60924.0,0.009086]
[1724162454502,1.66394298,60927.0,60924.0,0.009086]
[1724162454732,0.660542,60925.0,60924.0,0.009086]
[1724162454941,1.63572376,60925.0,60924.0,0.009086]
[1724162455149,2.08814076,60925.0,60924.0,0.009086]
[1724162455569,1.55994076,60925.0,60924.0,0.009086]
[1724162455732,1.56394076,60925.0,60924.0,0.009086]
[1724162456562,2.36475776,60925.0,60924.0,0.009086]
[1724162456759,2.36375776,60925.0,60924.0,0.009086]
[1724162457019,2.35075776,60925.0,60924.0,0.009086]
[1724162457186,2.36475776,60925.0,60924.0,0.009086]
[1724162457883,2.10214076,60925.0,60924.0,0.009086]
[1724162458311,2.10214076,60925.0,60922.0,0.009086]
[1724162458312,0.658565,60923.0,60922.0,0.009086]
[1724162458559,1.73779876,60923.0,60922.0,0.009086]
[1724162459013,1.73379876,60923.0,60922.0,0.009086]
[1724162459230,1.99737276,60923.0,60922.0,0.009086]
[1724162459459,1.99937276,60923.0,60922.0,0.009086]
[1724162459682,2.26199876,60923.0,60922.0,0.009086]
[1724162459976,1.119159,60912.0,60896.0,0.009086]
[1724162460193,1.54783598,60912.0,60896.0,0.009086]
[1724162460430,0.656845,60897.0,60896.0,0.009086]
[1724162460654,0.82058964,60897.0,60896.0,0.009086]
[1724162460877,1.7129866,60897.0,60896.0,0.009086]
[1724162461101,1.7962866,60897.0,60896.0,0.009086]
[1724162461321,1.2720866,60897.0,60896.0,0.009086]
[1724162461548,1.0093486,60897.0,60896.0,0.009086]
[1724162461774,0.58085164,60897.0,60896.0,0.009086]
[1724162462226,1.10505164,60897.0,60896.0,0.009086]
[1724162462439,1.36778964,60897.0,60896.0,0.009086]
[1724162462654,1.10505164,60897.0,60896.0,0.009086]
[1724162462881,1.11905164,60897.0,60896.0,0.009086]
[1724162463079,1.2572291,60897.0,60896.0,0.009086]
[1724162463291,0.85631364,60897.0,60896.0,0.009086]
[1724162463491,0.5382,60897.0,60896.0,0.009086]
[1724162463697,0.028,60897.0,60896.0,0.117786]
[1724162464120,0.36558048,60897.0,60896.0,0.117786]
[1724162464352,0.61431848,60897.0,60896.0,0.009086]
[1724162464563,0.87705648,60897.0,60896.0,0.009086]
[1724162464778,1.23619448,60897.0,60896.0,0.009086]
[1724162465211,1.52393248,60897.0,60896.0,0.009086]
[1724162465451,0.131406,60880.0,60879.0,0.1087]
[1724162465668,0.82103298,60880.0,60879.0,0.1087]
[1724162465892,0.84403298,60880.0,60879.0,0.1087]
[1724162466139,0.58122098,60880.0,60879.0,0.1087]
[1724162466419,0.27140518,60880.0,60872.0,0.1078]
[1724162466666,0.655621,60873.0,60872.0,0.1078]
[1724162466903,0.655621,60873.0,60871.0,0.0002]
[1724162466904,0.394269,60872.0,60871.0,0.0002]
[1724162467145,0.82111798,60872.0,60871.0,0.0002]
[1724162467393,1.10696398,60872.0,60871.0,0.0002]
[1724162467648,1.37094276,60872.0,60871.0,0.0002]
[1724162467870,1.45564276,60872.0,60871.0,0.0002]
[1724162468323,1.19979676,60872.0,60871.0,0.0002]
[1724162468779,1.45564276,60872.0,60871.0,0.0002]
[1724162469006,1.46964276,60872.0,60871.0,0.0002]
[1724162469454,1.48364276,60872.0,60871.0,0.0002]
[1724162470179,0.85025076,60872.0,60871.0,0.0002]
[1724162470440,0.83625076,60872.0,60871.0,0.0002]
[1724162470670,0.82225076,60872.0,60871.0,0.0002]
[1724162470904,0.83625076,60872.0,60871.0,0.0002]
[1724162471368,1.08509676,60872.0,60871.0,0.0002]
[1724162471845,1.12209676,60872.0,60871.0,0.0002]
[1724162472077,1.13609676,60872.0,60871.0,0.0002]
[1724162472302,1.12209676,60872.0,60871.0,0.0002]
[1724162472551,0.16400298,60872.0,60871.0,0.0002]
[1724162472838,0.014,60872.0,60871.0,0.499175]
[1724162473065,0.17800298,60872.0,60871.0,0.1039]
[1724162473297,0.57607228,60872.0,60871.0,0.0002]
[1724162473528,0.59007228,60872.0,60871.0,0.0002]
[1724162473965,0.60407228,60872.0,60871.0,0.0002]
[1724162474240,0.62707228,60872.0,60871.0,0.0002]
[1724162474466,0.59907228,60872.0,60871.0,0.0002]
[1724162474688,0.86191828,60872.0,60871.0,0.0002]
[1724162475121,0.96191828,60872.0,60871.0,0.0002]
[1724162475335,0.97391828,60872.0,60871.0,0.0002]
[1724162475591,1.76096428,60872.0,60871.0,0.0002]
[1724162475816,1.77696428,60872.0,60871.0,0.0002]
[1724162476040,1.86606428,60872.0,60871.0,0.0002]
[1724162476259,1.95456428,60872.0,60871.0,0.0002]
[1724162476495,1.95456428,60872.0,60859.0,0.0118551]
[1724162476497,0.758449,60860.0,60859.0,0.0118551]
[1724162476720,0.758449,60860.0,60851.0,0.0002]
[1724162476721,0.398399,60852.0,60851.0,0.0002]
[1724162476958,1.30056798,60852.0,60851.0,0.0002]
[1724162477194,1.40056798,60852.0,60851.0,0.0002]
[1724162477434,1.53662478,60852.0,60851.0,0.0002]
[1724162477645,1.80355778,60852.0,60851.0,0.0002]
[1724162477868,2.32775778,60852.0,60851.0,0.0002]
[1724162478355,2.32775778,60852.0,60835.0,0.009097]
[1724162478356,0.131501,60836.0,60835.0,0.009097]
[1724162478569,0.76375608,60836.0,60835.0,0.009097]
[1724162478792,1.28976008,60836.0,60835.0,0.009097]
[1724162479021,1.31276008,60836.0,60835.0,0.009097]
[1724162479249,1.31676008,60836.0,60835.0,0.009097]
[1724162479483,1.57976208,60836.0,60835.0,0.009097]
[1724162479687,0.004,60832.0,60831.0,0.0002]
[1724162479897,2.08896898,60832.0,60831.0,0.0002]
[1724162480121,2.45198798,60832.0,60831.0,0.0002]
[1724162480608,0.742762,60812.0,60811.0,0.009286]
[1724162480843,1.11695038,60812.0,60811.0,0.009286]
[1724162481071,1.88405538,60812.0,60811.0,0.009286]
[1724162481306,1.98405538,60812.0,60811.0,0.009286]
[1724162481547,2.02825538,60812.0,60811.0,0.009286]
[1724162481789,2.02825538,60812.0,60808.0,0.0001]
[1724162481790,0.135559,60809.0,60808.0,0.0001]
[1724162482031,0.82579798,60809.0,60808.0,0.0001]
[1724162482269,0.004,60793.0,60770.0,0.001]
[1724162482504,0.004,60793.0,60768.0,0.1101]
[1724162482505,0.16400298,60792.0,60790.0,0.009086]
[1724162482768,0.1,60808.0,60798.0,0.131581]
[1724162482985,0.1,60808.0,60792.0,0.001]
[1724162482986,0.263082,60818.0,60804.0,0.001]
[1724162483224,0.0808,60826.0,60809.0,0.264117]
[1724162483225,0.49229154,60816.0,60809.0,0.264117]
[1724162483460,0.49229154,60816.0,60802.0,0.0828]
[1724162483461,0.02578401,60814.0,60813.0,0.395651]
[1724162483681,0.57969154,60834.0,60825.0,0.1113]
[1724162483682,0.16400298,60827.0,60825.0,0.1113]
[1724162483888,0.16400298,60827.0,60814.0,0.1123]
[1724162484149,0.16400298,60827.0,60814.0,0.1113]
[1724162484404,0.16400298,60825.0,60814.0,0.1113]
[1724162484603,0.16400298,60825.0,60809.0,0.1067]
[1724162484604,0.1317037,60824.0,60809.0,0.1067]
[1724162484834,0.1317037,60824.0,60810.0,0.131556]
[1724162484835,0.001,60821.0,60810.0,0.131556]
[1724162485058,0.263083,60818.0,60809.0,0.1067]
[1724162485275,0.655747,60815.0,60809.0,0.1067]
[1724162485489,0.18700298,60814.0,60809.0,0.1067]
[1724162485740,0.18700298,60814.0,60808.0,0.0009097]
[1724162485741,0.263107,60812.0,60808.0,0.0009097]
[1724162485972,0.5242,60815.0,60808.0,0.0009097]
[1724162485973,0.45011298,60811.0,60808.0,0.0009097]
[1724162486186,0.394677,60809.0,60808.0,0.0009097]
[1724162486405,0.58167998,60809.0,60808.0,0.0009097]
[1724162486645,0.64736001,60809.0,60808.0,0.0009097]
[1724162486857,0.38424201,60809.0,60808.0,0.0009097]
[1724162487088,0.16400298,60809.0,60808.0,0.0009097]
[1724162487306,0.014,60814.0,60808.0,0.0009097]
[1724162487307,0.0846,60824.0,60809.0,0.1017]
[1724162487520,0.131556,60811.0,60809.0,0.1017]
[1724162487751,0.131556,60811.0,60808.0,0.0009097]
[1724162487752,0.394677,60809.0,60808.0,0.0009097]
[1724162487982,0.58167998,60809.0,60808.0,0.0009097]
[1724162488214,1.85781598,60809.0,60808.0,0.0009097]
[1724162488443,1.85781598,60809.0,60790.0,0.009086]
[1724162488444,0.394788,60792.0,60790.0,0.009086]
[1724162488686,0.88446178,60792.0,60790.0,0.009086]
[1724162488919,0.58179098,60792.0,60790.0,0.009086]
[1724162489154,1.30367498,60792.0,60790.0,0.009086]
[1724162489417,1.40367498,60792.0,60790.0,0.009086]
[1724162489682,1.40167498,60792.0,60790.0,0.009086]
[1724162489909,1.56765376,60792.0,60790.0,0.009086]
[1724162490128,1.56965376,60792.0,60790.0,0.009086]
[1724162490340,1.58365376,60792.0,60790.0,0.009086]
[1724162490556,1.84684576,60792.0,60790.0,0.009086]
[1724162490818,1.83284576,60792.0,60790.0,0.009086]
[1724162491025,1.59765376,60792.0,60790.0,0.009086]
[1724162491261,1.58365376,60792.0,60790.0,0.009086]
[1724162491480,1.56965376,60792.0,60790.0,0.009086]
[1724162491913,1.83284576,60792.0,60790.0,0.009086]
[1724162492768,0.658197,60772.0,60771.0,0.0002]
[1724162493035,0.84519998,60772.0,60771.0,0.0002]
[1724162493265,1.19017898,60772.0,60771.0,0.0002]
[1724162493502,1.55345798,60772.0,60771.0,0.0002]
[1724162493716,1.55745798,60772.0,60771.0,0.0002]
[1724162493934,2.09371576,60772.0,60771.0,0.0002]
[1724162494153,2.10771576,60772.0,60771.0,0.0002]
[1724162494606,2.49371576,60772.0,60771.0,0.0002]
[1724162494840,2.24443676,60772.0,60771.0,0.0002]
[1724162495061,1.84443676,60772.0,60771.0,0.0002]
[1724162495960,1.84443676,60772.0,60771.0,0.0011097]
[1724162496624,1.83043676,60772.0,60771.0,0.0011097]
[1724162497366,1.80743676,60772.0,60771.0,0.0011097]
[1724162497589,1.25145776,60772.0,60771.0,0.0011097]
[1724162498020,1.53073676,60772.0,60771.0,0.0011097]
[1724162498260,1.79401576,60772.0,60771.0,0.0011097]
[1724162498474,1.79401576,60772.0,60751.0,0.0002]
[1724162498475,0.923777,60752.0,60751.0,0.0002]
[1724162498692,1.55024498,60752.0,60751.0,0.0002]
[1724162499141,1.57324498,60752.0,60751.0,0.0002]
[1724162499364,1.67324498,60752.0,60751.0,0.0002]
[1724162499579,1.55854498,60752.0,60751.0,0.0002]
[1724162499799,1.71839948,60752.0,60751.0,0.0002]
[1724162500019,1.71839948,60752.0,60739.0,0.0118551]
[1724162500020,0.921959,60740.0,60739.0,0.0118551]
[1724162500245,1.20896198,60740.0,60739.0,0.0118551]
[1724162500475,1.20896198,60740.0,60731.0,0.0002]
[1724162500476,1.185534,60732.0,60731.0,0.0002]
[1724162500698,1.35353698,60732.0,60731.0,0.0002]
[1724162500919,0.82263298,60732.0,60731.0,0.0002]
[1724162501198,0.28700298,60732.0,60731.0,0.0002]
[1724162501418,0.68218098,60732.0,60731.0,0.0002]
[1724162501638,0.16400298,60732.0,60731.0,0.0002]
[1724162501862,0.263411,60742.0,60731.0,0.0002]
[1724162501863,0.263368,60752.0,60738.0,0.001]
[1724162502110,0.0819,60757.0,60736.0,0.263434]
[1724162502111,0.65629452,60751.0,60746.0,0.001]
[1724162502318,0.04,60757.0,60740.0,0.370314]
[1724162502319,0.16400298,60756.0,60749.0,0.0846]
[1724162502536,0.263361,60753.0,60749.0,0.0846]
[1724162502771,0.2633,60768.0,60748.0,0.1069]
[1724162502772,0.131689,60749.0,60748.0,0.1069]
[1724162502991,0.131692,60748.0,60742.0,0.0846]
[1724162503209,0.06595,60749.0,60747.0,0.001]
[1724162503703,0.06595,60749.0,60746.0,0.001]
[1724162503904,0.06595,60749.0,60748.0,0.131691]
[1724162504128,0.06595,60749.0,60746.0,0.132695]
[1724162504355,0.06595,60749.0,60748.0,0.001]
[1724162504594,0.07895,60749.0,60748.0,0.659457]
[1724162504815,0.06595,60749.0,60748.0,0.396074]
[1724162505101,0.06595,60749.0,60747.0,0.1091]
[1724162505347,0.1514544,60748.0,60747.0,0.1091]
[1724162505559,0.50333498,60749.0,60747.0,0.1101]
[1724162505560,0.07595,60749.0,60747.0,0.1101]
[1724162505777,0.07595,60749.0,60742.0,0.0836]
[1724162505778,0.07595,60749.0,60748.0,0.001]
[1724162505992,0.01,60749.0,60748.0,1.11394]
[1724162506436,0.01,60749.0,60748.0,1.27794298]
[1724162506668,0.49229154,60766.0,60756.0,0.263346]
[1724162506912,0.49229154,60766.0,60748.0,0.51078598]
[1724162506913,0.065932,60760.0,60757.0,0.1002]
[1724162507130,0.131662,60762.0,60759.0,0.001]
[1724162507348,0.131662,60762.0,60761.0,0.001]
[1724162507781,0.065933,60765.0,60761.0,0.001]
[1724162507997,0.065933,60765.0,60764.0,0.001]
[1724162508202,0.065933,60765.0,60764.0,0.1928]
[1724162508417,0.197587,60765.0,60764.0,0.1928]
[1724162508641,0.5069847,60765.0,60764.0,0.1918]
[1724162508877,0.395016,60757.0,60756.0,0.0841]
[1724162509092,0.395016,60757.0,60752.0,0.001]
[1724162509093,0.395041,60753.0,60752.0,0.001]
[1724162509316,0.395041,60753.0,60741.0,0.26341]
[1724162509317,0.131687,60750.0,60749.0,0.0851]
[1724162509524,0.131687,60750.0,60749.0,0.1886]
[1724162509742,0.131666,60760.0,60755.0,0.001]
[1724162509949,0.131666,60760.0,60749.0,0.0841]
[1724162509950,0.014,60762.0,60761.0,0.132663]
[1724162510206,0.065933,60765.0,60761.0,0.132663]
[1724162510207,0.065933,60765.0,60764.0,0.131656]
[1724162510647,0.065933,60765.0,60764.0,0.231456]
[1724162510854,0.0856909,60765.0,60764.0,0.0998]
[1724162511071,0.065933,60765.0,60764.0,0.0998]
[1724162511723,0.208587,60765.0,60764.0,0.1008]
[1724162511944,0.63589898,60765.0,60764.0,0.0998]
[1724162512158,0.076933,60765.0,60764.0,0.1008]
[1724162513309,0.208587,60765.0,60764.0,0.1008]
[1724162513527,0.076933,60765.0,60764.0,0.1008]
[1724162513735,0.208587,60765.0,60764.0,0.1008]
[1724162513968,0.471896,60765.0,60764.0,0.1008]
[1724162514418,0.471896,60765.0,60757.0,0.263342]
[1724162514419,0.131667,60759.0,60758.0,0.1036]
[1724162514637,0.131667,60759.0,60737.0,0.1]
[1724162514638,0.42733798,60759.0,60749.0,0.001]
[1724162514857,0.001,60763.0,60749.0,0.001]
[1724162514858,0.131687,60750.0,60749.0,0.001]
[1724162515076,0.16400298,60758.0,60748.0,0.0813]
[1724162515077,0.131672,60757.0,60753.0,0.001]
[1724162515295,0.131672,60757.0,60754.0,0.1104]
[1724162515296,0.131674,60756.0,60754.0,0.1104]
[1724162515508,0.131676,60755.0,60754.0,0.1104]
[1724162515736,0.131676,60755.0,60748.0,0.1092]
[1724162515737,0.131689,60749.0,60748.0,0.1092]
[1724162515949,0.0164003,60757.0,60752.0,0.001]
[1724162515950,0.1480733,60757.0,60752.0,0.001]
[1724162516169,0.1480733,60757.0,60753.0,0.001]
[1724162516170,0.16400298,60757.0,60753.0,0.001]
[1724162516399,0.49229154,60756.0,60753.0,0.001]
[1724162516612,0.0899,60774.0,60757.0,0.001]
[1724162516613,0.1,60772.0,60757.0,0.001]
[1724162516928,0.131663,60761.0,60758.0,0.1022]
[1724162517133,0.065933,60765.0,60758.0,0.1022]
[1724162517370,0.065933,60765.0,60764.0,0.001]
[1724162517558,0.460896,60765.0,60764.0,0.001]
[1724162517776,0.460896,60765.0,60758.0,0.365539]
[1724162517777,0.131665,60760.0,60758.0,0.1022]
[1724162517990,0.263313,60764.0,60759.0,0.001]
[1724162517991,0.263319,60763.0,60759.0,0.001]
[1724162518211,0.014,60761.0,60759.0,0.001]
[1724162518421,0.131664,60761.0,60759.0,0.001]
[1724162518634,0.197588,60765.0,60762.0,0.001]
[1724162518855,0.197588,60765.0,60758.0,0.1022]
[1724162518856,0.079933,60765.0,60764.0,0.001]
[1724162519079,0.065933,60765.0,60764.0,0.001]
[1724162519308,0.065933,60765.0,60764.0,0.132656]
[1724162519547,0.263264,60776.0,60764.0,0.1076]
[1724162519790,0.49229154,60779.0,60771.0,0.001]
[1724162519791,0.263271,60774.0,60771.0,0.001]
[1724162520000,0.394907,60774.0,60771.0,0.001]
[1724162520216,0.131639,60773.0,60771.0,0.001]
[1724162520446,0.131639,60773.0,60752.0,0.263364]
[1724162520447,0.008,60761.0,60757.0,0.1029]
[1724162520694,0.395008,60758.0,60757.0,0.1029]
[1724162520913,0.131669,60758.0,60757.0,0.1019]
[1724162521127,0.6879142,60758.0,60757.0,0.1019]
[1724162521337,0.4245752,60758.0,60757.0,0.1019]
[1724162521550,0.85191718,60758.0,60757.0,0.1019]
[1724162521775,0.85191718,60758.0,60750.0,0.001]
[1724162521776,0.131685,60751.0,60750.0,0.001]
[1724162522077,0.131678,60755.0,60750.0,0.132685]
[1724162522299,0.131678,60755.0,60747.0,0.3510945]
[1724162522300,0.29567498,60757.0,60754.0,0.1069]
[1724162522752,0.16400298,60757.0,60754.0,0.1069]
[1724162522984,0.14167,60758.0,60756.0,0.001]
[1724162522985,0.01,60758.0,60756.0,0.001]
[1724162523232,0.131672,60757.0,60756.0,0.001]
[1724162523454,0.131673,60757.0,60756.0,0.001]
[1724162523914,0.131673,60757.0,60754.0,0.1069]
[1724162523915,0.0607477,60758.0,60754.0,0.1069]
[1724162524159,0.131676,60755.0,60754.0,0.1069]
[1724162524404,0.29567898,60755.0,60754.0,0.1069]
[1724162524668,0.64196688,60755.0,60754.0,0.1069]
[1724162524901,0.55903098,60755.0,60754.0,0.1069]
[1724162525616,0.82238298,60755.0,60754.0,0.1069]
[1724162525857,0.011,60757.0,60755.0,0.001]
[1724162526102,0.011,60757.0,60756.0,0.396022]
[1724162526344,0.011,60757.0,60756.0,0.922718]
[1724162526582,0.011,60757.0,60756.0,0.65937]
[1724162526813,0.011,60757.0,60756.0,0.396022]
[1724162527081,0.011,60757.0,60756.0,0.503822]
[1724162527318,0.263293,60769.0,60760.0,0.263331]
[1724162527319,0.131653,60766.0,60760.0,0.263331]
[1724162527590,0.263272,60774.0,60760.0,0.263331]
[1724162527591,0.263272,60774.0,60760.0,0.851927]
[1724162527806,0.429188,60775.0,60760.0,1.115258]
[1724162527807,0.065922,60775.0,60760.0,1.115258]
[1724162528241,0.197555,60775.0,60760.0,1.115258]
[1724162528569,0.065922,60775.0,60760.0,1.27926098]
[1724162528790,0.065922,60775.0,60760.0,1.54259198]
[1724162529016,0.065922,60775.0,60760.0,1.115258]
[1724162529226,0.131638,60773.0,60760.0,1.115258]
[1724162529439,0.131643,60771.0,60760.0,0.851927]
[1724162529666,0.065922,60775.0,60760.0,0.851927]
[1724162529667,0.131662,60762.0,60760.0,0.1926]
[1724162529894,0.1487378,60761.0,60760.0,0.1085]
[1724162530127,0.003826,60761.0,60760.0,0.1085]
[1724162530341,0.000826,60761.0,60760.0,0.1085]
[1724162530544,0.16482898,60761.0,60756.0,0.001]
[1724162530763,0.16482898,60761.0,60753.0,0.1046]
[1724162530764,0.131671,60758.0,60754.0,0.131678]
[1724162530985,0.23314888,60760.0,60749.0,0.26357415]
[1724162530986,0.131687,60750.0,60749.0,0.00019815]
[1724162531200,0.33519408,60750.0,60749.0,0.00019815]
[1724162531386,0.16400298,60750.0,60749.0,0.00019815]
[1724162531616,0.16300298,60750.0,60749.0,0.10739815]
[1724162531856,0.023,60760.0,60752.0,0.001]
[1724162532090,0.13167,60758.0,60752.0,0.001]
[1724162532335,0.16400298,60757.0,60753.0,0.13168]
[1724162532538,0.16400298,60757.0,60754.0,0.131677]
[1724162532758,0.16400298,60757.0,60752.0,0.001]
[1724162533410,0.154666,60760.0,60757.0,0.001]
[1724162533411,0.011,60758.0,60757.0,0.001]
[1724162533847,0.011,60758.0,60753.0,0.001]
[1724162533848,0.131672,60757.0,60753.0,0.001]
[1724162534056,0.16400298,60757.0,60753.0,0.001]
[1724162534262,0.20065248,60757.0,60754.0,0.131678]
[1724162534468,0.19365248,60757.0,60753.0,0.001]
[1724162534681,0.131675,60756.0,60753.0,0.001]
[1724162534891,0.19365248,60757.0,60754.0,0.131678]
[1724162534892,0.16400298,60757.0,60754.0,0.131678]
[1724162535102,0.000826,60761.0,60755.0,0.001]
[1724162535103,0.13249,60761.0,60755.0,0.001]
[1724162535316,0.000826,60758.0,60757.0,0.131671]
[1724162535530,0.000826,60758.0,60757.0,0.132671]
[1724162535742,0.000826,60758.0,60757.0,0.659359]
[1724162535948,0.000826,60758.0,60757.0,0.396015]
[1724162536443,0.000826,60758.0,60757.0,0.132671]
[1724162536657,0.000826,60758.0,60757.0,0.131672]
[1724162537064,0.000826,60758.0,60757.0,0.132672]
[1724162537273,0.005826,60758.0,60757.0,0.132672]
[1724162537511,0.005826,60758.0,60757.0,0.65936]
[1724162537716,0.000826,60758.0,60757.0,0.65936]
[1724162537927,0.005826,60758.0,60757.0,0.396016]
[1724162538134,0.005826,60758.0,60757.0,0.132672]
[1724162538340,0.000826,60758.0,60757.0,0.396016]
[1724162538570,0.005826,60758.0,60757.0,0.396016]
[1724162538987,0.005826,60758.0,60757.0,0.65936]
[1724162539642,0.005826,60758.0,60757.0,0.396016]
[1724162540069,0.005826,60758.0,60757.0,0.132672]
[1724162540697,0.005826,60758.0,60757.0,0.396016]
[1724162540899,0.005826,60758.0,60757.0,0.132672]
[1724162541112,0.1513273,60758.0,60755.0,0.001]
[1724162541343,0.16400298,60757.0,60749.0,0.10739815]
[1724162541546,0.395061,60750.0,60749.0,0.00019815]
[1724162541752,0.82243798,60750.0,60749.0,0.00019815]
[1724162541966,0.84543798,60750.0,60749.0,0.00019815]
[1724162542172,0.263354,60755.0,60749.0,0.00019815]
[1724162542400,0.16400298,60754.0,60749.0,0.00019815]
[1724162542638,0.131687,60750.0,60749.0,0.00019815]
[1724162542845,0.55906398,60750.0,60749.0,0.00019815]
[1724162543285,1.21481198,60750.0,60749.0,0.00019815]
[1724162543492,1.33869318,60750.0,60749.0,0.00019815]
[1724162543711,1.33969318,60750.0,60749.0,0.00019815]
[1724162543993,1.13986305,60750.0,60749.0,0.00019815]
[1724162544194,1.07531918,60750.0,60749.0,0.00019815]
[1724162544403,1.14887557,60750.0,60749.0,0.00019815]
[1724162544611,1.69824594,60750.0,60749.0,0.00019815]
[1724162544816,1.60014957,60750.0,60749.0,0.00019815]
[1724162545469,1.86352357,60750.0,60749.0,0.00019815]
[1724162545880,1.88894771,60750.0,60749.0,0.00019815]
[1724162546107,1.860623,60748.0,60747.0,0.0009075]
[1724162546298,2.48238529,60748.0,60747.0,0.0009075]
[1724162546510,2.58238529,60748.0,60747.0,0.0009075]
[1724162546708,2.00948529,60748.0,60747.0,0.0009075]
[1724162546909,2.1316458,60748.0,60747.0,0.0009075]
[1724162547124,2.00948442,60748.0,60747.0,0.0009075]
[1724162547328,2.34792298,60748.0,60747.0,0.0009075]
[1724162547535,2.18238535,60748.0,60747.0,0.0009075]
[1724162547984,2.34726835,60748.0,60747.0,0.0009075]
[1724162548201,2.36126835,60748.0,60747.0,0.0009075]
[1724162548406,1.552076,60740.0,60739.0,0.0009086]
[1724162548640,1.97115237,60740.0,60739.0,0.0009086]
[1724162549099,1.99415237,60740.0,60739.0,0.0009086]
[1724162549530,1.85360739,60740.0,60739.0,0.0009086]
[1724162550149,1.66617898,60740.0,60739.0,0.0009086]
[1724162550380,1.83015776,60740.0,60739.0,0.0009086]
[1724162551021,1.58074076,60740.0,60739.0,0.0009086]
[1724162551900,1.55374076,60740.0,60739.0,0.0009086]
[1724162552327,0.55912798,60740.0,60739.0,0.0009086]